[Event "Early-Titled-Tuesday-Blitz-February-27-2024"]
[Site "Chess.com"]
[Date "2024.02.27"]
[Round "4"]
[White "Kostya0705"]
[Black "LangesNasenhaar"]
[Result "1-0"]
[WhiteElo "2574"]
[BlackElo "2401"]
[TimeControl "180+1"]
[EndTime "8:37:31 PST"]
[Termination "Kostya0705 won by checkmate"]

1. e4 {[%clk 0:02:52]} 1... g6 {[%clk 0:03:00.4]} 2. d4 {[%clk 0:02:51.6]} 2...
Bg7 {[%clk 0:03:01]} 3. Nc3 {[%clk 0:02:52.5]} 3... c6 {[%clk 0:03:01.2]} 4. Nf3
{[%clk 0:02:50.8]} 4... d5 {[%clk 0:03:01.7]} 5. e5 {[%clk 0:02:50.8]} 5... Bg4
{[%clk 0:02:58.7]} 6. h3 {[%clk 0:02:50.4]} 6... Bxf3 {[%clk 0:02:58.3]} 7. Qxf3
{[%clk 0:02:51.3]} 7... f6 {[%clk 0:02:58.7]} 8. exf6 {[%clk 0:02:49.8]} 8...
Nxf6 {[%clk 0:02:58.7]} 9. Bf4 {[%clk 0:02:50.1]} 9... O-O {[%clk 0:02:58.6]}
10. Qe3 {[%clk 0:02:47.4]} 10... c5 {[%clk 0:02:40.5]} 11. O-O-O {[%clk
0:02:44.9]} 11... cxd4 {[%clk 0:02:38]} 12. Rxd4 {[%clk 0:02:40.8]} 12... Nc6
{[%clk 0:02:30.1]} 13. Qe6+ {[%clk 0:02:32.4]} 13... Kh8 {[%clk 0:02:30]} 14.
Rd1 {[%clk 0:02:33.3]} 14... d4 {[%clk 0:02:21]} 15. Bc4 {[%clk 0:02:20.3]}
15... Nh5 {[%clk 0:02:03.7]} 16. Bh2 {[%clk 0:02:18]} 16... Rxf2 {[%clk
0:01:56.9]} 17. Ne4 {[%clk 0:02:16.4]} 17... Rxg2 {[%clk 0:01:44.1]} 18. Rdg1
{[%clk 0:02:05.5]} 18... Rxg1+ {[%clk 0:01:25.9]} 19. Rxg1 {[%clk 0:01:57.6]}
19... Qf8 {[%clk 0:01:03.9]} 20. Rf1 {[%clk 0:01:50]} 20... Nf6 {[%clk
0:01:03.6]} 21. Ng5 {[%clk 0:01:41.7]} 21... Nd8 {[%clk 0:00:50.6]} 22. Qe5
{[%clk 0:01:41.2]} 22... h6 {[%clk 0:00:45.5]} 23. Ne4 {[%clk 0:01:34.1]} 23...
Nc6 {[%clk 0:00:41.8]} 24. Qe6 {[%clk 0:01:28]} 24... Qc8 {[%clk 0:00:37.3]} 25.
Qf7 {[%clk 0:01:11.3]} 25... Qxh3 {[%clk 0:00:33.3]} 26. Nxf6 {[%clk 0:00:46]}
26... exf6 {[%clk 0:00:23.2]} 27. Qxg6 {[%clk 0:00:44.2]} 27... Qxh2 {[%clk
0:00:14.4]} 28. Bd3 {[%clk 0:00:41.1]} 28... Kg8 {[%clk 0:00:14.5]} 29. Rxf6
{[%clk 0:00:36.2]} 29... Qh1+ {[%clk 0:00:06.4]} 30. Rf1 {[%clk 0:00:35.6]}
30... Qd5 {[%clk 0:00:06.1]} 31. Qh7# {[%clk 0:00:34.3]} 1-0

[Event "Early-Titled-Tuesday-Blitz-February-27-2024"]
[Site "Chess.com"]
[Date "2024.02.27"]
[Round "4"]
[White "Kazancev_Valerij_M"]
[Black "CristianS27"]
[Result "1-0"]
[WhiteElo "2397"]
[BlackElo "2522"]
[TimeControl "180+1"]
[EndTime "8:37:31 PST"]
[Termination "Kazancev_Valerij_M won by resignation"]

1. c4 {[%clk 0:02:55.5]} 1... g6 {[%clk 0:02:55.2]} 2. h4 {[%clk 0:02:54.8]}
2... Bg7 {[%clk 0:02:56.1]} 3. h5 {[%clk 0:02:52.8]} 3... d6 {[%clk 0:02:51.2]}
4. Nc3 {[%clk 0:02:52]} 4... c5 {[%clk 0:02:45.9]} 5. d3 {[%clk 0:02:50.5]} 5...
Nc6 {[%clk 0:02:25.3]} 6. h6 {[%clk 0:02:46.4]} 6... Bf8 {[%clk 0:02:13.1]} 7.
a3 {[%clk 0:02:44.7]} 7... e5 {[%clk 0:02:05]} 8. Rb1 {[%clk 0:02:42.8]} 8...
Be6 {[%clk 0:01:51.8]} 9. Nf3 {[%clk 0:02:41.4]} 9... Be7 {[%clk 0:01:46.2]} 10.
b4 {[%clk 0:02:37.1]} 10... b6 {[%clk 0:01:37.5]} 11. g3 {[%clk 0:02:33.3]}
11... Nf6 {[%clk 0:01:35.2]} 12. Ng5 {[%clk 0:02:30.1]} 12... Bd7 {[%clk
0:01:34]} 13. Bg2 {[%clk 0:02:30]} 13... O-O {[%clk 0:01:34]} 14. b5 {[%clk
0:02:26.5]} 14... Nd4 {[%clk 0:01:32.8]} 15. Bxa8 {[%clk 0:02:22.8]} 15... Qxa8
{[%clk 0:01:33.7]} 16. e4 {[%clk 0:02:21.4]} 16... Bg4 {[%clk 0:01:25.2]} 17. f3
{[%clk 0:02:20.5]} 17... Bd7 {[%clk 0:01:24.6]} 18. g4 {[%clk 0:02:12]} 18...
Ne8 {[%clk 0:01:22]} 19. Nd5 {[%clk 0:02:09.8]} 19... Bd8 {[%clk 0:01:22.4]} 20.
Be3 {[%clk 0:02:02.2]} 20... Nc7 {[%clk 0:01:18.6]} 21. Nxc7 {[%clk 0:01:42]}
21... Bxc7 {[%clk 0:01:19.5]} 22. Bxd4 {[%clk 0:01:40.5]} 22... exd4 {[%clk
0:01:18.5]} 23. f4 {[%clk 0:01:39.8]} 23... d5 {[%clk 0:01:17.5]} 24. cxd5
{[%clk 0:01:37.9]} 24... Bxf4 {[%clk 0:01:17.1]} 25. Nh3 {[%clk 0:01:34.3]}
25... Bg3+ {[%clk 0:01:16.2]} 26. Kd2 {[%clk 0:01:33.7]} 26... Be5 {[%clk
0:01:17.1]} 27. Ng1 {[%clk 0:01:13.9]} 27... Qc8 {[%clk 0:01:12.9]} 28. Nf3
{[%clk 0:01:07.4]} 28... Bf4+ {[%clk 0:01:13.1]} 29. Kc2 {[%clk 0:01:06.5]}
29... Bxg4 {[%clk 0:01:14]} 30. Qf1 {[%clk 0:01:05]} 30... Be3 {[%clk
0:01:13.2]} 31. Nd2 {[%clk 0:01:00.1]} 31... Bd7 {[%clk 0:01:09.2]} 32. Nc4
{[%clk 0:00:59.8]} 32... Qe8 {[%clk 0:01:09.4]} 33. a4 {[%clk 0:00:58.6]} 33...
f5 {[%clk 0:01:08.4]} 34. e5 {[%clk 0:00:52.3]} 34... f4 {[%clk 0:01:05]} 35. e6
{[%clk 0:00:48.9]} 35... Bc8 {[%clk 0:01:02.6]} 36. Qh3 {[%clk 0:00:48.3]} 36...
Rf5 {[%clk 0:01:02.3]} 37. Nd6 {[%clk 0:00:40.6]} 37... Qf8 {[%clk 0:00:58.2]}
38. Nxf5 {[%clk 0:00:38.8]} 38... Qxf5 {[%clk 0:00:51.6]} 39. Qxf5 {[%clk
0:00:34.9]} 39... gxf5 {[%clk 0:00:52.5]} 40. Rbg1+ {[%clk 0:00:32.5]} 40...
Bxg1 {[%clk 0:00:51.3]} 41. Rxg1+ {[%clk 0:00:32.6]} 41... Kf8 {[%clk 0:00:52]}
42. Rg7 {[%clk 0:00:30.4]} 1-0

[Event "Early-Titled-Tuesday-Blitz-February-27-2024"]
[Site "Chess.com"]
[Date "2024.02.27"]
[Round "4"]
[White "joksijoksi"]
[Black "newauto"]
[Result "1-0"]
[WhiteElo "2487"]
[BlackElo "2222"]
[TimeControl "180+1"]
[EndTime "8:37:35 PST"]
[Termination "joksijoksi won by resignation"]

1. e4 {[%clk 0:03:00.9]} 1... c6 {[%clk 0:02:58.9]} 2. d4 {[%clk 0:02:58]} 2...
d5 {[%clk 0:02:59.8]} 3. exd5 {[%clk 0:02:56.3]} 3... cxd5 {[%clk 0:02:59.6]} 4.
Bd3 {[%clk 0:02:52.8]} 4... Nc6 {[%clk 0:02:59.6]} 5. c3 {[%clk 0:02:53.1]} 5...
Nf6 {[%clk 0:02:58]} 6. Bf4 {[%clk 0:02:52]} 6... g6 {[%clk 0:02:47.8]} 7. h3
{[%clk 0:02:51.3]} 7... Bg7 {[%clk 0:02:48]} 8. Nf3 {[%clk 0:02:51.1]} 8... O-O
{[%clk 0:02:48.3]} 9. O-O {[%clk 0:02:51.6]} 9... Bf5 {[%clk 0:02:45.9]} 10.
Bxf5 {[%clk 0:02:48.4]} 10... gxf5 {[%clk 0:02:46.8]} 11. Nbd2 {[%clk
0:02:48.2]} 11... Ne4 {[%clk 0:02:45.9]} 12. Ne5 {[%clk 0:02:42.1]} 12... Nxe5
{[%clk 0:02:38.3]} 13. Bxe5 {[%clk 0:02:39.8]} 13... e6 {[%clk 0:02:26.5]} 14.
Bxg7 {[%clk 0:02:36.1]} 14... Kxg7 {[%clk 0:02:24.1]} 15. Nf3 {[%clk 0:02:36.1]}
15... Qb6 {[%clk 0:02:21.1]} 16. Qe2 {[%clk 0:02:34.5]} 16... Qa6 {[%clk
0:02:03.3]} 17. Qe3 {[%clk 0:02:30.2]} 17... b5 {[%clk 0:01:56.7]} 18. Ne5
{[%clk 0:02:24.2]} 18... Qd6 {[%clk 0:01:41.2]} 19. f3 {[%clk 0:02:24.3]} 19...
f6 {[%clk 0:01:31.3]} 20. fxe4 {[%clk 0:02:17.6]} 20... fxe5 {[%clk 0:01:31]}
21. exf5 {[%clk 0:02:00.9]} 21... exd4 {[%clk 0:01:29.2]} 22. Qg5+ {[%clk
0:01:57.2]} 22... Kh8 {[%clk 0:01:26.2]} 23. f6 {[%clk 0:01:47.8]} 23... Rg8
{[%clk 0:01:21.4]} 24. Qh6 {[%clk 0:01:41.5]} 24... Qg3 {[%clk 0:01:18.7]} 25.
Rf2 {[%clk 0:01:41.5]} 25... Rg6 {[%clk 0:01:14.1]} 26. Qh5 {[%clk 0:01:34.3]}
26... dxc3 {[%clk 0:01:03.6]} 27. bxc3 {[%clk 0:01:28.7]} 27... Rf8 {[%clk
0:01:02.8]} 28. Raf1 {[%clk 0:01:28.4]} 28... Qe3 {[%clk 0:01:00]} 29. Kh1
{[%clk 0:01:23.3]} 29... Qxc3 {[%clk 0:00:56.6]} 30. f7 {[%clk 0:01:22.4]} 30...
Qg7 {[%clk 0:00:55]} 31. Qe2 {[%clk 0:01:15.5]} 31... a6 {[%clk 0:00:45]} 32. a4
{[%clk 0:01:13.2]} 32... bxa4 {[%clk 0:00:23.8]} 33. Qxa6 {[%clk 0:01:13.2]}
33... e5 {[%clk 0:00:16.8]} 34. Qxa4 {[%clk 0:01:11.2]} 34... Rd6 {[%clk
0:00:16.1]} 35. Qb4 {[%clk 0:01:07.5]} 35... Rdd8 {[%clk 0:00:15.9]} 36. Rf6
{[%clk 0:01:02.3]} 36... d4 {[%clk 0:00:15.1]} 37. Qe7 {[%clk 0:01:02.4]} 37...
h5 {[%clk 0:00:13.3]} 38. Qxd8 {[%clk 0:00:56.8]} 38... Rxd8 {[%clk 0:00:12.8]}
39. f8=Q+ {[%clk 0:00:57.7]} 39... Rxf8 {[%clk 0:00:12.9]} 40. Rxf8+ {[%clk
0:00:58.5]} 40... Kh7 {[%clk 0:00:13.2]} 41. R1f7 {[%clk 0:00:58.3]} 41... e4
{[%clk 0:00:12.8]} 42. Rxg7+ {[%clk 0:00:56.8]} 42... Kxg7 {[%clk 0:00:13.7]}
43. Rd8 {[%clk 0:00:54.6]} 43... e3 {[%clk 0:00:13.7]} 44. Rxd4 {[%clk
0:00:53.6]} 44... Kf6 {[%clk 0:00:14.1]} 45. Re4 {[%clk 0:00:54.1]} 1-0

[Event "Early-Titled-Tuesday-Blitz-February-27-2024"]
[Site "Chess.com"]
[Date "2024.02.27"]
[Round "4"]
[White "campochess"]
[Black "PavelChernomordik"]
[Result "1-0"]
[WhiteElo "2195"]
[BlackElo "2412"]
[TimeControl "180+1"]
[EndTime "8:37:35 PST"]
[Termination "campochess won on time"]

1. Nf3 {[%clk 0:02:58.4]} 1... g6 {[%clk 0:02:58.8]} 2. e4 {[%clk 0:02:56.5]}
2... Bg7 {[%clk 0:02:58.9]} 3. d4 {[%clk 0:02:56.5]} 3... d6 {[%clk 0:02:58.9]}
4. h3 {[%clk 0:02:55.7]} 4... Nf6 {[%clk 0:02:57.6]} 5. Nc3 {[%clk 0:02:54.3]}
5... a6 {[%clk 0:02:57.3]} 6. Bd3 {[%clk 0:02:51.3]} 6... O-O {[%clk 0:02:56]}
7. Qe2 {[%clk 0:02:50.8]} 7... c5 {[%clk 0:02:53.6]} 8. e5 {[%clk 0:02:46]} 8...
dxe5 {[%clk 0:02:50.8]} 9. dxe5 {[%clk 0:02:46]} 9... Nd5 {[%clk 0:02:50.4]} 10.
Nxd5 {[%clk 0:02:46.2]} 10... Qxd5 {[%clk 0:02:49.9]} 11. O-O {[%clk 0:02:44.9]}
11... Nc6 {[%clk 0:02:49.5]} 12. Bf4 {[%clk 0:02:43.9]} 12... b5 {[%clk
0:02:44.2]} 13. Rad1 {[%clk 0:02:43.1]} 13... Qe6 {[%clk 0:02:02.9]} 14. Be4
{[%clk 0:02:38.8]} 14... Bb7 {[%clk 0:01:51.5]} 15. Ng5 {[%clk 0:02:37]} 15...
Qc8 {[%clk 0:01:51.2]} 16. c3 {[%clk 0:02:34.6]} 16... h6 {[%clk 0:01:39]} 17.
Nf3 {[%clk 0:02:27]} 17... Qc7 {[%clk 0:01:31.9]} 18. Qe3 {[%clk 0:02:20.4]}
18... Kh7 {[%clk 0:01:05.6]} 19. e6 {[%clk 0:02:18.7]} 19... Qb6 {[%clk
0:01:02]} 20. exf7 {[%clk 0:02:00.8]} 20... e5 {[%clk 0:00:58.2]} 21. Bg3 {[%clk
0:01:54.8]} 21... Rxf7 {[%clk 0:00:54.5]} 22. Nh4 {[%clk 0:01:54.1]} 22... Ne7
{[%clk 0:00:53.2]} 23. Rd7 {[%clk 0:01:48.6]} 23... Bxe4 {[%clk 0:00:51.1]} 24.
Qxe4 {[%clk 0:01:48.7]} 24... Re8 {[%clk 0:00:42.1]} 25. Rfd1 {[%clk 0:01:46.8]}
25... Qe6 {[%clk 0:00:38.5]} 26. R1d6 {[%clk 0:01:42.6]} 26... Qxa2 {[%clk
0:00:33.2]} 27. Rxe7 {[%clk 0:01:42.2]} 27... Rexe7 {[%clk 0:00:24.4]} 28. Nxg6
{[%clk 0:01:37.1]} 28... Kg8 {[%clk 0:00:18.6]} 29. Nxe7+ {[%clk 0:01:36.4]}
29... Rxe7 {[%clk 0:00:18.4]} 30. Rd8+ {[%clk 0:01:35.4]} 30... Bf8 {[%clk
0:00:18]} 31. Qg6+ {[%clk 0:01:33]} 31... Rg7 {[%clk 0:00:15.5]} 32. Qd6 {[%clk
0:01:29.5]} 32... Qf7 {[%clk 0:00:14.3]} 33. Bxe5 {[%clk 0:01:21.8]} 33... Rg6
{[%clk 0:00:12.7]} 34. Qxc5 {[%clk 0:01:19.1]} 34... Qf3 {[%clk 0:00:08]} 35.
Qd5+ {[%clk 0:01:13]} 35... Qxd5 {[%clk 0:00:07.4]} 36. Rxd5 {[%clk 0:01:12.9]}
36... Re6 {[%clk 0:00:06.8]} 37. f4 {[%clk 0:01:10.2]} 37... Rc6 {[%clk
0:00:05.4]} 38. Rd7 {[%clk 0:01:07.7]} 38... a5 {[%clk 0:00:03.6]} 39. Ra7
{[%clk 0:01:07.8]} 39... a4 {[%clk 0:00:03]} 40. Kf1 {[%clk 0:01:07.9]} 40...
Rc4 {[%clk 0:00:02.1]} 41. Ke2 {[%clk 0:01:07.3]} 1-0

[Event "Early-Titled-Tuesday-Blitz-February-27-2024"]
[Site "Chess.com"]
[Date "2024.02.27"]
[Round "4"]
[White "vishwa_vijeta"]
[Black "JoliyRoger"]
[Result "1-0"]
[WhiteElo "2603"]
[BlackElo "2419"]
[TimeControl "180+1"]
[EndTime "8:37:40 PST"]
[Termination "vishwa_vijeta won on time"]

1. e4 {[%clk 0:03:00.9]} 1... c6 {[%clk 0:03:00.3]} 2. c4 {[%clk 0:02:58.7]}
2... d5 {[%clk 0:03:01.2]} 3. cxd5 {[%clk 0:02:59]} 3... cxd5 {[%clk 0:03:01.5]}
4. exd5 {[%clk 0:02:59.9]} 4... Qxd5 {[%clk 0:03:02]} 5. Nc3 {[%clk 0:02:59.6]}
5... Qd6 {[%clk 0:03:02.2]} 6. Nf3 {[%clk 0:02:59.1]} 6... e6 {[%clk 0:03:02.4]}
7. d4 {[%clk 0:02:59.6]} 7... Nf6 {[%clk 0:03:01.5]} 8. Nb5 {[%clk 0:02:57.2]}
8... Qb6 {[%clk 0:03:00.6]} 9. Bc4 {[%clk 0:02:48.3]} 9... Bb4+ {[%clk
0:02:46.7]} 10. Bd2 {[%clk 0:02:44.8]} 10... Bxd2+ {[%clk 0:02:44.2]} 11. Qxd2
{[%clk 0:02:45.7]} 11... O-O {[%clk 0:02:43.9]} 12. O-O {[%clk 0:02:44.8]} 12...
Rd8 {[%clk 0:02:30.9]} 13. Rad1 {[%clk 0:02:40.5]} 13... Nc6 {[%clk 0:02:22.4]}
14. Nc3 {[%clk 0:02:31.6]} 14... Nb4 {[%clk 0:02:20.6]} 15. Ne5 {[%clk
0:02:27.2]} 15... Nbd5 {[%clk 0:02:18.6]} 16. Bb3 {[%clk 0:02:26.9]} 16... Qd6
{[%clk 0:02:10.6]} 17. Bc2 {[%clk 0:02:17.6]} 17... Nxc3 {[%clk 0:01:56.9]} 18.
bxc3 {[%clk 0:02:17]} 18... b6 {[%clk 0:01:42]} 19. h3 {[%clk 0:01:35.8]} 19...
Bb7 {[%clk 0:01:41.9]} 20. Qg5 {[%clk 0:01:23.8]} 20... Rac8 {[%clk 0:01:35.8]}
21. Rd3 {[%clk 0:01:19.6]} 21... h6 {[%clk 0:01:08.4]} 22. Qh4 {[%clk
0:01:16.1]} 22... Qe7 {[%clk 0:00:33.9]} 23. Rg3 {[%clk 0:01:13.5]} 23... Kf8
{[%clk 0:00:30.6]} 24. f4 {[%clk 0:00:55.9]} 24... Ne8 {[%clk 0:00:13.4]} 25.
Qg4 {[%clk 0:00:51.1]} 25... Qf6 {[%clk 0:00:12.9]} 26. f5 {[%clk 0:00:50.2]}
26... Ba6 {[%clk 0:00:06.5]} 27. Rf2 {[%clk 0:00:48.3]} 27... Nd6 {[%clk
0:00:02.3]} 28. fxe6 {[%clk 0:00:46.8]} 28... Qg5 {[%clk 0:00:02.7]} 29. Qxg5
{[%clk 0:00:45.3]} 29... hxg5 {[%clk 0:00:02.8]} 30. exf7 {[%clk 0:00:44.9]} 1-0

[Event "Early-Titled-Tuesday-Blitz-February-27-2024"]
[Site "Chess.com"]
[Date "2024.02.27"]
[Round "4"]
[White "sokidze"]
[Black "deribas12345"]
[Result "0-1"]
[WhiteElo "2772"]
[BlackElo "2574"]
[TimeControl "180+1"]
[EndTime "8:37:41 PST"]
[Termination "deribas12345 won on time"]

1. d4 {[%clk 0:03:00.9]} 1... Nf6 {[%clk 0:02:58.2]} 2. c4 {[%clk 0:03:00.3]}
2... c5 {[%clk 0:02:58.6]} 3. d5 {[%clk 0:03:00.3]} 3... b5 {[%clk 0:02:58.8]}
4. cxb5 {[%clk 0:03:00.4]} 4... a6 {[%clk 0:02:59.4]} 5. e3 {[%clk 0:02:57.6]}
5... g6 {[%clk 0:02:57]} 6. Nc3 {[%clk 0:02:56.6]} 6... Bg7 {[%clk 0:02:57.4]}
7. e4 {[%clk 0:02:57.1]} 7... O-O {[%clk 0:02:56.7]} 8. a4 {[%clk 0:02:57.7]}
8... e6 {[%clk 0:02:54.1]} 9. dxe6 {[%clk 0:02:43]} 9... fxe6 {[%clk 0:02:54.1]}
10. Be3 {[%clk 0:02:43.7]} 10... d5 {[%clk 0:02:41.5]} 11. Bxc5 {[%clk
0:02:39.6]} 11... Re8 {[%clk 0:02:36.4]} 12. Nf3 {[%clk 0:02:35.6]} 12... Nbd7
{[%clk 0:02:34.6]} 13. Be3 {[%clk 0:02:19.6]} 13... Nxe4 {[%clk 0:02:32.5]} 14.
Nxe4 {[%clk 0:02:13.2]} 14... dxe4 {[%clk 0:02:32.6]} 15. Nd4 {[%clk 0:01:59.4]}
15... Ne5 {[%clk 0:02:23.4]} 16. Be2 {[%clk 0:01:55.7]} 16... Nd3+ {[%clk
0:01:51.2]} 17. Bxd3 {[%clk 0:01:54.6]} 17... exd3 {[%clk 0:01:52.1]} 18. Qxd3
{[%clk 0:01:24.1]} 18... axb5 {[%clk 0:01:30.2]} 19. O-O {[%clk 0:01:22.3]}
19... bxa4 {[%clk 0:01:30.1]} 20. Rfd1 {[%clk 0:01:16.1]} 20... Bb7 {[%clk
0:01:08.3]} 21. f3 {[%clk 0:01:07.7]} 21... Qa5 {[%clk 0:00:59.7]} 22. Qe2
{[%clk 0:00:38.5]} 22... Bd5 {[%clk 0:00:55.7]} 23. Kh1 {[%clk 0:00:27.9]} 23...
Reb8 {[%clk 0:00:53.5]} 24. Bf4 {[%clk 0:00:26.5]} 24... Rc8 {[%clk 0:00:43.4]}
25. Be5 {[%clk 0:00:23.6]} 25... Bc4 {[%clk 0:00:43.3]} 26. Qf2 {[%clk
0:00:03.4]} 26... Qxe5 {[%clk 0:00:40.3]} 27. h3 {[%clk 0:00:02.9]} 27... Qf4
{[%clk 0:00:33.6]} 28. Nc2 {[%clk 0:00:02]} 28... Bb3 {[%clk 0:00:30]} 0-1

[Event "Early-Titled-Tuesday-Blitz-February-27-2024"]
[Site "Chess.com"]
[Date "2024.02.27"]
[Round "4"]
[White "Felix-Rose"]
[Black "Mikasinski"]
[Result "1-0"]
[WhiteElo "2271"]
[BlackElo "2638"]
[TimeControl "180+1"]
[EndTime "8:37:41 PST"]
[Termination "Felix-Rose won by checkmate"]

1. e4 {[%clk 0:03:00.3]} 1... c5 {[%clk 0:02:59.7]} 2. Nf3 {[%clk 0:03:00.4]}
2... d6 {[%clk 0:03:00.4]} 3. d4 {[%clk 0:03:00.7]} 3... cxd4 {[%clk 0:03:01.1]}
4. Nxd4 {[%clk 0:03:01.6]} 4... Nf6 {[%clk 0:03:01.6]} 5. Nc3 {[%clk 0:03:02.3]}
5... g6 {[%clk 0:03:02.3]} 6. Be3 {[%clk 0:03:02.7]} 6... Bg7 {[%clk 0:03:02.9]}
7. f3 {[%clk 0:03:03.4]} 7... O-O {[%clk 0:03:03.7]} 8. Qd2 {[%clk 0:03:04.2]}
8... Nc6 {[%clk 0:03:04.4]} 9. O-O-O {[%clk 0:03:04.7]} 9... Bd7 {[%clk
0:03:05.1]} 10. g4 {[%clk 0:03:04.5]} 10... Rc8 {[%clk 0:03:05.8]} 11. Kb1
{[%clk 0:03:02.6]} 11... Ne5 {[%clk 0:03:06.2]} 12. Be2 {[%clk 0:03:02.8]} 12...
Qa5 {[%clk 0:03:06.5]} 13. Nb3 {[%clk 0:03:02.1]} 13... Qc7 {[%clk 0:03:06.6]}
14. h4 {[%clk 0:03:01.3]} 14... b5 {[%clk 0:03:06.2]} 15. h5 {[%clk 0:02:57]}
15... b4 {[%clk 0:03:06.3]} 16. Nd5 {[%clk 0:02:56.6]} 16... Nxd5 {[%clk
0:03:06.8]} 17. exd5 {[%clk 0:02:57.2]} 17... a5 {[%clk 0:03:07.5]} 18. Nd4
{[%clk 0:02:51.2]} 18... Nc4 {[%clk 0:03:06.7]} 19. Bxc4 {[%clk 0:02:47]} 19...
Qxc4 {[%clk 0:03:07.4]} 20. Bh6 {[%clk 0:02:46.3]} 20... Bxd4 {[%clk 0:01:50.6]}
21. Bxf8 {[%clk 0:02:20.9]} 21... Bc3 {[%clk 0:01:40.8]} 22. Qh6 {[%clk
0:02:03.4]} 22... Bxb2 {[%clk 0:01:01.7]} 23. Rd2 {[%clk 0:01:06.2]} 23... Ba4
{[%clk 0:00:21.8]} 24. c3 {[%clk 0:00:10.5]} 24... bxc3 {[%clk 0:00:12.8]} 25.
Qg7# {[%clk 0:00:09.7]} 1-0

[Event "Early-Titled-Tuesday-Blitz-February-27-2024"]
[Site "Chess.com"]
[Date "2024.02.27"]
[Round "4"]
[White "aistrel"]
[Black "IlanSchnaider"]
[Result "0-1"]
[WhiteElo "2543"]
[BlackElo "2746"]
[TimeControl "180+1"]
[EndTime "8:37:42 PST"]
[Termination "IlanSchnaider won on time"]

1. d4 {[%clk 0:03:00.9]} 1... d5 {[%clk 0:02:57.7]} 2. Bf4 {[%clk 0:03:01.3]}
2... Nf6 {[%clk 0:02:55.7]} 3. e3 {[%clk 0:03:01.8]} 3... c5 {[%clk 0:02:55.7]}
4. Nc3 {[%clk 0:03:02.3]} 4... cxd4 {[%clk 0:02:45.9]} 5. exd4 {[%clk
0:03:03.2]} 5... Bg4 {[%clk 0:02:45.8]} 6. Be2 {[%clk 0:03:03.7]} 6... Bd7
{[%clk 0:02:37.6]} 7. Nf3 {[%clk 0:02:58.5]} 7... e6 {[%clk 0:02:31.8]} 8. O-O
{[%clk 0:02:50.8]} 8... a6 {[%clk 0:02:20.8]} 9. Ne5 {[%clk 0:02:49.7]} 9... Nc6
{[%clk 0:02:20.6]} 10. Re1 {[%clk 0:02:19.1]} 10... Bb4 {[%clk 0:02:17.8]} 11.
Bf3 {[%clk 0:02:19.5]} 11... O-O {[%clk 0:02:14.5]} 12. Qd3 {[%clk 0:02:13.6]}
12... Qb6 {[%clk 0:02:09.8]} 13. Rad1 {[%clk 0:02:11.5]} 13... Rac8 {[%clk
0:02:06.1]} 14. g4 {[%clk 0:02:09.4]} 14... Nxe5 {[%clk 0:01:50.9]} 15. dxe5
{[%clk 0:01:39.8]} 15... Ne8 {[%clk 0:01:46.1]} 16. Bd2 {[%clk 0:01:06.7]} 16...
Bc5 {[%clk 0:01:39.2]} 17. Be3 {[%clk 0:00:49.1]} 17... Qxb2 {[%clk 0:01:28.9]}
18. Rb1 {[%clk 0:00:20.5]} 18... Qa3 {[%clk 0:01:28.9]} 19. Rxb7 {[%clk
0:00:21.1]} 19... Bc6 {[%clk 0:01:03.7]} 20. Rb3 {[%clk 0:00:15.3]} 20... Qa5
{[%clk 0:01:04.1]} 21. Reb1 {[%clk 0:00:14.1]} 21... Bxe3 {[%clk 0:00:57]} 22.
Qxe3 {[%clk 0:00:15]} 22... d4 {[%clk 0:00:57.2]} 23. Qxd4 {[%clk 0:00:09.8]}
23... Bxf3 {[%clk 0:00:56.6]} 24. Na4 {[%clk 0:00:09.2]} 24... Bd5 {[%clk
0:00:53.2]} 25. Nb6 {[%clk 0:00:08.7]} 25... Rd8 {[%clk 0:00:43.4]} 26. c4
{[%clk 0:00:08.6]} 26... Bxc4 {[%clk 0:00:25.9]} 27. Nxc4 {[%clk 0:00:03.8]}
27... Qc7 {[%clk 0:00:23.7]} 28. Qc3 {[%clk 0:00:02.1]} 28... Rd5 {[%clk
0:00:22.4]} 0-1

[Event "Early-Titled-Tuesday-Blitz-February-27-2024"]
[Site "Chess.com"]
[Date "2024.02.27"]
[Round "4"]
[White "m_ezat"]
[Black "thebeast2900"]
[Result "1-0"]
[WhiteElo "2514"]
[BlackElo "2303"]
[TimeControl "180+1"]
[EndTime "8:37:45 PST"]
[Termination "m_ezat won by resignation"]

1. d4 {[%clk 0:03:00.9]} 1... Nf6 {[%clk 0:02:59.3]} 2. c4 {[%clk 0:03:01.3]}
2... e6 {[%clk 0:02:59.5]} 3. Nc3 {[%clk 0:03:01.8]} 3... Bb4 {[%clk 0:02:58.7]}
4. Qc2 {[%clk 0:03:02.4]} 4... d5 {[%clk 0:02:58]} 5. a3 {[%clk 0:03:01.4]} 5...
Bxc3+ {[%clk 0:02:55]} 6. Qxc3 {[%clk 0:03:02.3]} 6... dxc4 {[%clk 0:02:55.2]}
7. Qxc4 {[%clk 0:03:02.4]} 7... O-O {[%clk 0:02:55.9]} 8. Bg5 {[%clk 0:03:01.9]}
8... b6 {[%clk 0:02:54.9]} 9. Nf3 {[%clk 0:03:00.9]} 9... Ba6 {[%clk 0:02:54.5]}
10. Qc2 {[%clk 0:03:01.3]} 10... Nbd7 {[%clk 0:02:48.4]} 11. e4 {[%clk
0:03:01.6]} 11... Bxf1 {[%clk 0:02:42.2]} 12. Rxf1 {[%clk 0:03:01.9]} 12... h6
{[%clk 0:02:38.8]} 13. Bh4 {[%clk 0:02:59.5]} 13... Qc8 {[%clk 0:02:31.4]} 14.
O-O-O {[%clk 0:02:58.6]} 14... Qb7 {[%clk 0:02:17.4]} 15. Rfe1 {[%clk
0:02:51.1]} 15... c5 {[%clk 0:02:14.6]} 16. d5 {[%clk 0:02:41.9]} 16... exd5
{[%clk 0:01:59.4]} 17. exd5 {[%clk 0:02:41.9]} 17... Rfe8 {[%clk 0:01:57.9]} 18.
d6 {[%clk 0:02:02.3]} 18... Rxe1 {[%clk 0:00:52.1]} 19. Rxe1 {[%clk 0:01:58.6]}
19... Re8 {[%clk 0:00:51.5]} 20. Re7 {[%clk 0:01:18]} 20... Qd5 {[%clk
0:00:35.5]} 21. Qd2 {[%clk 0:00:22.4]} 21... Qxd2+ {[%clk 0:00:19.1]} 22. Nxd2
{[%clk 0:00:21.8]} 22... Rxe7 {[%clk 0:00:18.8]} 23. dxe7 {[%clk 0:00:21.6]}
23... Ne8 {[%clk 0:00:19.4]} 24. Nc4 {[%clk 0:00:19.5]} 24... f6 {[%clk
0:00:19]} 25. f4 {[%clk 0:00:18.2]} 25... Kf7 {[%clk 0:00:18.9]} 26. f5 {[%clk
0:00:18.7]} 26... Kxe7 {[%clk 0:00:18.6]} 27. Bg3 {[%clk 0:00:17.9]} 27... b5
{[%clk 0:00:13.1]} 28. Na5 {[%clk 0:00:17.4]} 28... Nd6 {[%clk 0:00:11.9]} 29.
Nc6+ {[%clk 0:00:17.2]} 29... Kf7 {[%clk 0:00:10.5]} 30. Bxd6 {[%clk 0:00:15.9]}
1-0